fUST/lending_fUST_20250901
["ID","MTS","AMOUNT","RATE_DAILY","PERIOD"]
[382751636,1756726242200,-480.0,0.00013698,2]
[382751637,1756726242211,-480.0,0.00013698,2]
[382751638,1756726242221,-481.86596231,0.00013698,2]
[382751639,1756726242233,-208.60472752,0.00013698,2]
[382751640,1756726242245,-529.82,0.00013698,2]
[382751641,1756726242256,-480.0,0.00013698,2]
[382751642,1756726242267,-480.0,0.00013698,2]
[382751643,1756726242278,-749.78,0.00013698,2]
[382751644,1756726242289,-480.0,0.00013698,2]
[382751645,1756726242299,-548.95,0.00013698,2]
[382751646,1756726242310,-850.26,0.00013698,2]
[382751647,1756726242321,-480.0,0.00013698,2]
[382751648,1756726242333,-480.0,0.00013698,2]
[382751649,1756726242343,-480.0,0.00013698,2]
[382751650,1756726242354,-480.0,0.00013698,2]
[382751651,1756726242365,-480.0,0.00013698,2]
[382751652,1756726242376,-480.0,0.00013698,2]
[382751653,1756726242386,-313.4301377,0.00013698,2]
[382751654,1756726242398,-480.0,0.00013698,2]
[382751655,1756726242408,-531.71312996,0.00013698,2]
[382751656,1756726242419,-480.0,0.00013698,2]
[382751657,1756726242429,-480.0,0.00013698,2]
[382751658,1756726242440,-481.53332325,0.00013698,2]
[382751659,1756726242451,-480.0,0.00013698,2]
[382751660,1756726242461,-715.17,0.00013698,2]
[382751661,1756726242472,-480.0,0.00013698,2]
[382751662,1756726242483,-480.0,0.00013698,2]
[382751663,1756726242494,-480.0,0.00013698,2]
[382751664,1756726242505,-496.88535369,0.00013698,2]
[382751665,1756726242516,-480.0,0.00013698,2]
[382751666,1756726242527,-480.0,0.00013698,2]
[382751667,1756726242539,-480.0,0.00013698,2]
[382751668,1756726242550,-508.74794958,0.00013698,2]
[382751669,1756726242561,-480.0,0.00013698,2]
[382751670,1756726242573,-480.0,0.00013698,2]
[382751671,1756726242585,-481.50359992,0.00013698,2]
[382751672,1756726242596,-480.0,0.00013698,2]
[382751673,1756726242607,-675.96,0.00013698,2]
[382751674,1756726242618,-480.0,0.00013698,2]
[382751675,1756726242628,-480.0,0.00013698,2]
[382751676,1756726242639,-480.0,0.00013698,2]
[382751677,1756726242650,-480.0,0.00013698,2]
[382751678,1756726242661,-480.0,0.00013698,2]
[382751679,1756726242672,-482.75407497,0.00013698,2]
[382751680,1756726242683,-480.0,0.00013698,2]
[382751681,1756726242694,-567.03920444,0.00013698,2]
[382751682,1756726242705,-480.0,0.00013698,2]
[382751683,1756726242716,-334.40506512,0.00013698,2]
[382751684,1756726242727,-480.0,0.00013698,2]
[382751685,1756726242738,-480.0,0.00013698,2]
[382751686,1756726242750,-480.0,0.00013698,2]
[382751687,1756726242761,-481.40511799,0.00013698,2]
[382751688,1756726242772,-480.0,0.00013698,2]
[382751689,1756726242783,-480.0,0.00013698,2]
[382751690,1756726242793,-484.62069244,0.00013698,2]
[382751691,1756726242804,-480.0,0.00013698,2]
[382751692,1756726242818,-480.0,0.00013698,2]
[382751693,1756726242829,-481.34972911,0.00013698,2]
[382751694,1756726242839,-480.0,0.00013698,2]
[382751695,1756726242850,-480.0,0.00013698,2]
[382751696,1756726242862,-480.0,0.00013698,2]
[382751697,1756726242873,-480.0,0.00013698,2]
[382751698,1756726242883,-480.0,0.00013698,2]
[382751699,1756726242894,-483.77911761,0.00013698,2]
[382751700,1756726242904,-421.78350037,0.00013698,2]
[382751701,1756726242914,-488.04670965,0.00013698,2]
[382751702,1756726242925,-480.0,0.00013698,2]
[382751703,1756726242935,-480.0,0.00013698,2]
[382751704,1756726242946,-480.38441257,0.00013698,2]
[382751705,1756726242956,-484.09405176,0.00013698,2]
[382751706,1756726242967,-480.0,0.00013698,2]
[382751707,1756726242978,-480.0,0.00013698,2]
[382751708,1756726242988,-151.0,0.00013698,2]
[382751709,1756726242999,-152.33332027,0.00013698,2]
[382751710,1756726243010,-151.0,0.00013698,2]
[382751711,1756726243020,-151.0,0.00013698,2]
[382751712,1756726243030,-151.0,0.00013698,2]
[382751713,1756726243041,-151.0,0.00013698,2]
[382751714,1756726243051,-151.0,0.00013698,2]
[382751715,1756726243062,-151.0,0.00013698,2]
[382751716,1756726243072,-152.17108138,0.00013698,2]
[382751717,1756726243082,-197.03558623,0.00013698,2]
[382751718,1756726243093,-480.0,0.00013698,2]
[382751719,1756726243104,-480.0,0.00013698,2]
[382751720,1756726243114,-480.0,0.00013698,2]
[382751721,1756726243124,-1000.0,0.00013698,2]
[382751722,1756726243135,-480.0,0.00013698,2]
[382751723,1756726243146,-439.53512927,0.00013698,2]
[382751724,1756726243156,-480.0,0.00013698,2]
[382751725,1756726243166,-480.0,0.00013698,2]
[382751727,1756726243177,-481.25496652,0.00013698,2]
[382751728,1756726243187,-480.0,0.00013698,2]
[382751729,1756726243198,-480.0,0.00013698,2]
[382751732,1756726243208,-480.0,0.00013698,2]
[382751733,1756726243218,-480.0,0.00013698,2]
[382751734,1756726243228,-480.0,0.00013698,2]
[382751735,1756726243239,-480.0,0.00013698,2]
[382751736,1756726243250,-480.0,0.00013698,2]
[382751737,1756726243260,-151.0,0.00013698,2]
[382751738,1756726243270,-480.0,0.00013698,2]
[382751739,1756726243281,-480.0,0.00013698,2]
[382751740,1756726243293,-480.0,0.00013698,2]
[382751741,1756726243304,-481.46191792,0.00013698,2]
[382751742,1756726243314,-480.0,0.00013698,2]
[382751743,1756726243325,-481.26547292,0.00013698,2]
[382751744,1756726243335,-480.69208295,0.00013698,2]
[382751745,1756726243346,-480.0,0.00013698,2]
[382751746,1756726243356,-480.0,0.00013698,2]
[382751747,1756726243365,-480.35556803,0.00013698,2]
[382751748,1756726243618,-480.0,0.00013698,2]
[382751749,1756726243634,-481.45661081,0.00013698,2]
[382751750,1756726243644,-480.0,0.00013698,2]
[382751751,1756726243652,-480.0,0.00013698,2]
[382751752,1756726243661,-480.0,0.00013698,2]
[382751753,1756726243671,-480.0,0.00013698,2]
[382751754,1756726243679,-481.21143917,0.00013698,2]
[382751755,1756726243688,-480.0,0.00013698,2]
[382751756,1756726243698,-579.63703457,0.00013698,2]
[382751757,1756726243706,-488.78,0.00013698,2]
[382751758,1756726243716,-480.0,0.00013698,2]
[382751759,1756726243724,-480.0,0.00013698,2]
[382751760,1756726243733,-480.0,0.00013698,2]
[382751761,1756726243743,-208.86055729,0.00013698,2]
[382751762,1756726243752,-481.52753779,0.00013698,2]
[382751763,1756726243762,-742.33,0.00013698,2]
[382751764,1756726243771,-480.0,0.00013698,2]
[382751765,1756726243781,-482.15268508,0.00013698,2]
[382751766,1756726243791,-480.0,0.00013698,2]
[382751767,1756726243801,-480.0,0.00013698,2]
[382751768,1756726243812,-480.0,0.00013698,2]
[382751769,1756726243822,-826.99,0.00013698,2]
[382751771,1756726243831,-483.7942138,0.00013698,2]
[382751772,1756726243840,-480.0,0.00013698,2]
[382751773,1756726243850,-480.0,0.00013698,2]
[382751774,1756726243860,-704.98,0.00013698,2]
[382751775,1756726243870,-480.0,0.00013698,2]
[382751776,1756726243879,-480.0,0.00013698,2]
[382751777,1756726243890,-481.5968499,0.00013698,2]
[382751778,1756726243901,-480.0,0.00013698,2]
[382751780,1756726243910,-362.3505503,0.00013698,2]
[382751781,1756726243920,-480.0,0.00013698,2]
[382751782,1756726243930,-502.39,0.00013698,2]
[382751783,1756726243939,-497.27052301,0.00013698,2]
[382751784,1756726243949,-773.44,0.00013698,2]
[382751785,1756726243958,-480.0,0.00013698,2]
[382751786,1756726243968,-480.0,0.00013698,2]
[382751788,1756726243978,-480.0,0.00013698,2]
[382751790,1756726243990,-480.0,0.00013698,2]
[382751791,1756726244002,-480.0,0.00013698,2]
[382751792,1756726244011,-480.0,0.00013698,2]
[382751793,1756726244021,-480.0,0.00013698,2]
[382751794,1756726244030,-480.0,0.00013698,2]
[382751795,1756726244040,-480.0,0.00013698,2]
[382751796,1756726244049,-480.0,0.00013698,2]
[382751797,1756726244059,-480.0,0.00013698,2]
[382751798,1756726244068,-480.0,0.00013698,2]
[382751799,1756726244078,-481.15084301,0.00013698,2]
[382751800,1756726244087,-480.0,0.00013698,2]
[382751801,1756726244097,-480.0,0.00013698,2]
[382751802,1756726244107,-480.0,0.00013698,2]
[382751803,1756726244116,-1029.9,0.00013698,2]
[382751804,1756726244126,-480.0,0.00013698,2]
[382751805,1756726244136,-480.0,0.00013698,2]
[382751806,1756726244146,-480.0,0.00013698,2]
[382751807,1756726244156,-151.0,0.00013698,2]
[382751808,1756726244166,-482.32835045,0.00013698,2]
[382751809,1756726244175,-569.86,0.00013698,2]
[382751810,1756726244185,-734.56,0.00013698,2]
[382751811,1756726244195,-406.80765003,0.00013698,2]
[382751812,1756726244206,-481.90123479,0.00013698,2]
[382751813,1756726244215,-480.0,0.00013698,2]
[382751814,1756726244225,-480.0,0.00013698,2]
[382751815,1756726244235,-480.0,0.00013698,2]
[382751816,1756726244247,-480.0,0.00013698,2]
[382751817,1756726244257,-457.16364871,0.00013698,2]
[382751818,1756726244266,-494.5,0.00013698,2]
[382751819,1756726244275,-462.05752525,0.00013698,2]
[382751820,1756726244285,-480.0,0.00013698,2]
[382751821,1756726244294,-986.09,0.00013698,2]
[382751822,1756726244304,-480.0,0.00013698,2]
[382751823,1756726244313,-480.0,0.00013698,2]
[382751824,1756726244323,-480.0,0.00013698,2]
[382751825,1756726244332,-480.95202241,0.00013698,2]
[382751826,1756726244342,-480.0,0.00013698,2]
[382751827,1756726244351,-480.0,0.00013698,2]
[382751828,1756726244360,-480.0,0.00013698,2]
[382751829,1756726244369,-784.35,0.00013698,2]
[382751830,1756726244379,-480.0,0.00013698,2]
[382751831,1756726244388,-480.0,0.00013698,2]
[382751832,1756726244398,-480.0,0.00013698,2]
[382751833,1756726244407,-480.0,0.00013698,2]
[382751834,1756726244418,-480.0,0.00013698,2]
[382751835,1756726244427,-480.0,0.00013698,2]
[382751836,1756726244437,-480.0,0.00013698,2]
[382751837,1756726244446,-841.31,0.00013698,2]
[382751838,1756726244456,-480.0,0.00013698,2]
[382751839,1756726244465,-480.0,0.00013698,2]
[382751840,1756726244475,-480.0,0.00013698,2]
[382751841,1756726244485,-480.0,0.00013698,2]
[382751842,1756726244495,-573.28,0.00013698,2]
[382751843,1756726244505,-480.0,0.00013698,2]
[382751844,1756726244514,-480.0,0.00013698,2]
[382751845,1756726244524,-371.6251656,0.00013698,2]
[382751846,1756726244533,-629.3,0.00013698,2]
[382751847,1756726244542,-480.0,0.00013698,2]
[382751848,1756726244551,-480.0,0.00013698,2]
[382751849,1756726244561,-480.0,0.00013698,2]
[382751850,1756726244571,-480.0,0.00013698,2]
[382751851,1756726244580,-480.0,0.00013698,2]
[382751852,1756726244591,-480.0,0.00013698,2]
[382751853,1756726244601,-480.0,0.00013698,2]
[382751854,1756726244610,-480.0,0.00013698,2]
[382751855,1756726244620,-1196.88,0.00013698,2]
[382751856,1756726244630,-480.0,0.00013698,2]
[382751857,1756726244639,-480.0,0.00013698,2]
[382751858,1756726244649,-480.0,0.00013698,2]
[382751859,1756726244658,-480.0,0.00013698,2]
[382751860,1756726244667,-480.0,0.00013698,2]
[382751861,1756726244676,-480.0,0.00013698,2]
[382751862,1756726244686,-480.0,0.00013698,2]
[382751863,1756726244695,-375.32385594,0.00013698,2]
[382751864,1756726244705,-480.0,0.00013698,2]
[382751865,1756726244714,-596.3,0.00013698,2]
[382751866,1756726244723,-480.0,0.00013698,2]
[382751867,1756726244732,-480.0,0.00013698,2]
[382751868,1756726244742,-480.0,0.00013698,2]
[382751869,1756726244752,-480.0,0.00013698,2]
[382751870,1756726244761,-503.54404293,0.00013698,2]
[382751871,1756726244771,-484.0963283,0.00013698,2]
[382751872,1756726244781,-481.65794519,0.00013698,2]
[382751873,1756726244790,-480.0,0.00013698,2]
[382751874,1756726244799,-480.0,0.00013698,2]
[382751875,1756726244810,-480.0,0.00013698,2]
[382751876,1756726244820,-480.0,0.00013698,2]
[382751877,1756726244829,-480.0,0.00013698,2]
[382751878,1756726244839,-480.7163408,0.00013698,2]
[382751879,1756726244848,-480.0,0.00013698,2]
[382751880,1756726244858,-888.01,0.00013698,2]
[382751881,1756726244867,-480.0,0.00013698,2]
[382751882,1756726244877,-481.83652388,0.00013698,2]
[382751883,1756726244887,-480.0,0.00013698,2]
[382751884,1756726244896,-480.0,0.00013698,2]
[382751885,1756726244905,-480.0,0.00013698,2]
[382751886,1756726244915,-480.0,0.00013698,2]
[382751887,1756726244924,-480.0,0.00013698,2]
[382751888,1756726244933,-482.95724241,0.00013698,2]
[382751889,1756726244943,-480.0,0.00013698,2]
[382751890,1756726244953,-2022.62,0.00013698,2]
[382751891,1756726244962,-2022.62,0.00013698,2]
[382751892,1756726244972,-2022.62,0.00013698,2]
[382751893,1756726244982,-480.0,0.00013698,2]
[382751894,1756726244991,-2022.62,0.00013698,2]
[382751895,1756726245002,-2022.62,0.00013698,2]
[382751896,1756726245011,-2022.62,0.00013698,2]
[382751897,1756726245021,-2022.62,0.00013698,2]
[382751898,1756726245030,-2022.62,0.00013698,2]
[382751899,1756726245040,-2022.62,0.00013698,2]
[382751900,1756726245049,-2022.62,0.00013698,2]
[382751901,1756726245059,-2022.62,0.00013698,2]
[382751902,1756726245068,-2022.62,0.00013698,2]
[382751903,1756726245077,-2022.62,0.00013698,2]
[382751904,1756726245086,-2022.62,0.00013698,2]
[382751905,1756726245096,-2022.62,0.00013698,2]
[382751906,1756726245105,-2022.62,0.00013698,2]
[382751907,1756726245114,-2022.62,0.00013698,2]
[382751908,1756726245124,-480.0,0.00013698,2]
[382751909,1756726245134,-2022.62,0.00013698,2]
[382751910,1756726245143,-2022.62,0.00013698,2]
[382751911,1756726245153,-2022.62,0.00013698,2]
[382751912,1756726245163,-2022.62,0.00013698,2]
[382751913,1756726245172,-2022.62,0.00013698,2]
[382751914,1756726245181,-2022.62,0.00013698,2]
[382751915,1756726245190,-2022.85,0.00013698,2]
[382751916,1756726245200,-480.0,0.00013698,2]
[382751917,1756726245210,-480.0,0.00013698,2]
[382751918,1756726245219,-761.66,0.00013698,2]
[382751919,1756726245229,-480.0,0.00013698,2]
[382751920,1756726245238,-1344.7,0.00013698,2]
[382751921,1756726245249,-480.0,0.00013698,2]
[382751922,1756726245258,-642.24,0.00013698,2]
[382751923,1756726245268,-885.34,0.00013698,2]
[382751924,1756726245277,-480.0,0.00013698,2]
[382751925,1756726245287,-480.0,0.00013698,2]
[382751926,1756726245296,-2086.87,0.00013698,2]
[382751927,1756726245307,-480.0,0.00013698,2]
[382751928,1756726245316,-480.0,0.00013698,2]
[382751929,1756726245326,-480.0,0.00013698,2]
[382751930,1756726245335,-480.0,0.00013698,2]
[382751931,1756726245344,-480.0,0.00013698,2]
[382751932,1756726245354,-480.0,0.00013698,2]
[382751933,1756726245363,-480.0,0.00013698,2]
[382751934,1756726245372,-480.0,0.00013698,2]
[382751935,1756726245383,-480.0,0.00013698,2]
[382751936,1756726245393,-553.06440306,0.00013698,2]
[382751937,1756726245403,-480.0,0.00013698,2]
[382751938,1756726245414,-480.0,0.00013698,2]
[382751939,1756726245423,-500.0,0.00013698,2]
[382751940,1756726245432,-2083.83,0.00013698,2]
[382751941,1756726245442,-933.65,0.00013698,2]
[382751942,1756726245451,-482.01937465,0.00013698,2]
[382751943,1756726245461,-480.00693632,0.00013698,2]
[382751944,1756726245470,-571.81,0.00013698,2]
[382751945,1756726245480,-577.37,0.00013698,2]
[382751946,1756726245490,-480.0,0.00013698,2]
[382751947,1756726245500,-480.0,0.00013698,2]
[382751948,1756726245510,-480.0,0.00013698,2]
[382751949,1756726245519,-480.0,0.00013698,2]
[382751950,1756726245528,-480.0,0.00013698,2]
[382751951,1756726245538,-480.0,0.00013698,2]
[382751952,1756726245547,-480.0,0.00013698,2]
[382751953,1756726245556,-193.75803509,0.00013698,2]
[382751954,1756726245566,-480.0,0.00013698,2]
[382751955,1756726245575,-480.0,0.00013698,2]
[382751956,1756726245585,-480.0,0.00013698,2]
[382751957,1756726245594,-480.0,0.00013698,2]
[382751958,1756726245604,-484.81447225,0.00013698,2]
[382751959,1756726245613,-480.0,0.00013698,2]
[382751960,1756726245622,-480.0,0.00013698,2]
[382751961,1756726245632,-641.35,0.00013698,2]
[382751962,1756726245642,-480.0,0.00013698,2]
[382751963,1756726245651,-552.48,0.00013698,2]
[382751964,1756726245661,-482.06845669,0.00013698,2]
[382751965,1756726245671,-480.0,0.00013698,2]
[382751966,1756726245680,-3484.24,0.00013698,2]
[382751967,1756726245690,-480.0,0.00013698,2]
[382751968,1756726245699,-461.95064771,0.00013698,2]
[382751969,1756726245708,-480.0,0.00013698,2]
[382751970,1756726245718,-480.0,0.00013698,2]
[382751971,1756726245727,-659.44,0.00013698,2]
[382751972,1756726245737,-480.0,0.00013698,2]
[382751973,1756726245746,-480.0,0.00013698,2]
[382751974,1756726245756,-480.0,0.00013698,2]
[382751975,1756726245765,-480.0,0.00013698,2]
[382751976,1756726245778,-480.0,0.00013698,2]
[382751977,1756726245788,-679.82,0.00013698,2]
[382751978,1756726245798,-1246.98,0.00013698,2]
[382751979,1756726245812,-961.39,0.00013698,2]
[382751980,1756726245826,-480.0,0.00013698,2]
[382751981,1756726245836,-480.0,0.00013698,2]
[382751982,1756726245845,-480.0,0.00013698,2]
[382751983,1756726245855,-911.22,0.00013698,2]
[382751984,1756726245865,-480.0,0.00013698,2]
[382751985,1756726245874,-481.10223775,0.00013698,2]
[382751986,1756726245884,-480.0,0.00013698,2]
[382751987,1756726245894,-515.43,0.00013698,2]
[382751988,1756726245904,-1351.42,0.00013698,2]
[382751989,1756726245914,-480.0,0.00013698,2]
[382751990,1756726245923,-480.0,0.00013698,2]
[382751991,1756726245934,-480.0,0.00013698,2]
[382751992,1756726245943,-729.16,0.00013698,2]
[382751993,1756726245953,-483.25609583,0.00013698,2]
[382751994,1756726245962,-480.0,0.00013698,2]
[382751995,1756726245971,-480.0,0.00013698,2]
[382751996,1756726245980,-480.0,0.00013698,2]
[382751997,1756726245990,-412.24149427,0.00013698,2]
[382751999,1756726246000,-480.0,0.00013698,2]
[382752000,1756726246010,-480.0,0.00013698,2]
[382752001,1756726246019,-490.77,0.00013698,2]
[382752002,1756726246030,-686.27,0.00013698,2]
[382752003,1756726246039,-480.0,0.00013698,2]
[382752004,1756726246051,-974.45,0.00013698,2]
[382752005,1756726246060,-480.0,0.00013698,2]
[382752006,1756726246071,-480.0,0.00013698,2]
[382752007,1756726246080,-480.0,0.00013698,2]
[382752008,1756726246091,-480.0,0.00013698,2]
[382752009,1756726246102,-480.0,0.00013698,2]
[382752010,1756726246112,-2104.44,0.00013698,2]
[382752011,1756726246122,-480.0,0.00013698,2]
[382752012,1756726246131,-481.35453299,0.00013698,2]
[382752013,1756726246141,-480.0,0.00013698,2]
[382752014,1756726246151,-480.0,0.00013698,2]
[382752015,1756726246160,-919.79,0.00013698,2]
[382752016,1756726246170,-517.95,0.00013698,2]
[382752017,1756726246179,-480.0,0.00013698,2]
[382752018,1756726246189,-480.0,0.00013698,2]
[382752019,1756726246198,-616.92,0.00013698,2]
[382752020,1756726246208,-480.0,0.00013698,2]
[382752021,1756726246218,-480.0,0.00013698,2]
[382752022,1756726246227,-480.0,0.00013698,2]
[382752023,1756726246236,-480.0,0.00013698,2]
[382752024,1756726246246,-480.0,0.00013698,2]
[382752025,1756726246256,-480.74850527,0.00013698,2]
[382752026,1756726246266,-480.0,0.00013698,2]
[382752027,1756726246276,-480.0,0.00013698,2]
[382752028,1756726246286,-480.0,0.00013698,2]
[382752029,1756726246296,-480.0,0.00013698,2]
[382752030,1756726246305,-480.0,0.00013698,2]
[382752031,1756726246314,-480.0,0.00013698,2]
[382752032,1756726246324,-752.04,0.00013698,2]
[382752033,1756726246334,-480.0,0.00013698,2]
[382752034,1756726246344,-4751.22,0.00013698,2]
[382752035,1756726246353,-676.45,0.00013698,2]
[382752036,1756726246362,-480.0,0.00013698,2]
[382752037,1756726246372,-480.0,0.00013698,2]
[382752039,1756726246381,-579.5,0.00013698,2]
[382752040,1756726246391,-914.82,0.00013698,2]
[382752041,1756726246400,-448.19095112,0.00013698,2]
[382752042,1756726246410,-500.0,0.00013698,2]
[382752043,1756726246419,-480.0,0.00013698,2]
[382752044,1756726246428,-500.0,0.00013698,2]
[382752045,1756726246437,-472.41800137,0.00013698,2]
[382752046,1756726246447,-480.0,0.00013698,2]
[382752047,1756726246456,-532.49531859,0.00013698,2]
[382752048,1756726246466,-5468.58,0.00013698,2]
[382752049,1756726246475,-480.0,0.00013698,2]
[382752051,1756726246485,-480.0,0.00013698,2]
[382752052,1756726246496,-480.0,0.00013698,2]
[382752053,1756726246505,-571.81544095,0.00013698,2]
[382752054,1756726246514,-480.0,0.00013698,2]
[382752055,1756726246524,-480.0,0.00013698,2]
[382752056,1756726246533,-480.0,0.00013698,2]
[382752057,1756726246542,-480.0,0.00013698,2]
[382752058,1756726246552,-480.0,0.00013698,2]
[382752059,1756726246562,-481.68747919,0.00013698,2]
[382752060,1756726246571,-1546.95,0.00013698,2]
[382752061,1756726246580,-295.55875626,0.00013698,2]
[382752062,1756726246590,-1916.86,0.00013698,2]
[382752063,1756726246599,-480.0,0.00013698,2]
[382752064,1756726246609,-480.0,0.00013698,2]
[382752065,1756726246619,-480.0,0.00013698,2]
[382752066,1756726246628,-480.0,0.00013698,2]
[382752067,1756726246638,-480.0,0.00013698,2]
[382752068,1756726246647,-1175.5,0.00013698,2]
[382752069,1756726246656,-480.0,0.00013698,2]
[382752070,1756726246665,-480.0,0.00013698,2]
[382752071,1756726246822,-480.0,0.00013698,2]
[382752072,1756726246832,-480.0,0.00013698,2]
[382752073,1756726246842,-1053.95,0.00013698,2]
[382752074,1756726246853,-480.0,0.00013698,2]
[382752075,1756726246863,-480.0,0.00013698,2]
[382752076,1756726246873,-480.0,0.00013698,2]
[382752077,1756726246884,-295.12593839,0.00013698,2]
[382752078,1756726246894,-480.0,0.00013698,2]
[382752079,1756726246903,-480.0,0.00013698,2]
[382752080,1756726246913,-480.0,0.00013698,2]
[382752081,1756726246923,-1985.57,0.00013698,2]
[382752082,1756726246932,-463.39145523,0.00013698,2]
[382752083,1756726246942,-481.38516802,0.00013698,2]
[382752084,1756726246951,-500.0,0.00013698,2]
[382752085,1756726246961,-480.0,0.00013698,2]
[382752086,1756726246971,-480.0,0.00013698,2]
[382752087,1756726246980,-480.9231616,0.00013698,2]
[382752088,1756726246989,-480.0,0.00013698,2]
[382752089,1756726246998,-930.18,0.00013698,2]
[382752090,1756726247007,-480.0,0.00013698,2]
[382752091,1756726247016,-480.0,0.00013698,2]
[382752092,1756726247025,-480.0,0.00013698,2]
[382752093,1756726247034,-480.0,0.00013698,2]
[382752094,1756726247043,-480.0,0.00013698,2]
[382752095,1756726247052,-534.33,0.00013698,2]
[382752096,1756726247061,-480.0,0.00013698,2]
[382752097,1756726247070,-508.71,0.00013698,2]
[382752098,1756726247079,-480.0,0.00013698,2]
[382752099,1756726247088,-480.0,0.00013698,2]
[382752100,1756726247097,-755.06,0.00013698,2]
[382752101,1756726247106,-480.0,0.00013698,2]
[382752102,1756726247115,-450.99480377,0.00013698,2]
[382752103,1756726247124,-556.86,0.00013698,2]
[382752104,1756726247132,-480.0,0.00013698,2]
[382752105,1756726247141,-543.63,0.00013698,2]
[382752106,1756726247150,-966.53,0.00013698,2]
[382752107,1756726247159,-486.17744944,0.00013698,2]
[382752108,1756726247168,-480.0,0.00013698,2]
[382752109,1756726247178,-480.0,0.00013698,2]
[382752110,1756726247187,-480.0,0.00013698,2]
[382752111,1756726247197,-480.0,0.00013698,2]
[382752112,1756726247206,-1018.46,0.00013698,2]
[382752113,1756726247215,-480.0,0.00013698,2]
[382752114,1756726247224,-480.0,0.00013698,2]
[382752115,1756726247233,-4891.49,0.00013698,2]
[382752116,1756726247242,-480.0,0.00013698,2]
[382752117,1756726247252,-480.0,0.00013698,2]
[382752118,1756726247261,-603.49,0.00013698,2]
[382752119,1756726247271,-911.72,0.00013698,2]
[382752120,1756726247280,-480.0,0.00013698,2]
[382752121,1756726247290,-480.0,0.00013698,2]
[382752122,1756726247300,-480.0,0.00013698,2]
[382752123,1756726247311,-480.0,0.00013698,2]
[382752124,1756726247321,-1574.72,0.00013698,2]
[382752125,1756726247331,-988.86773629,0.00013698,2]
[382752126,1756726247579,-1682.43226371,0.00013698,2]
[382752127,1756726247589,-157.4141734,0.00013698,2]
[382752128,1756726247599,-480.0,0.00013698,2]
[382752129,1756726247609,-490.4360983,0.00013698,2]
[382752130,1756726247618,-628.03,0.00013698,2]
[382752131,1756726247628,-480.0,0.00013698,2]
[382752132,1756726247638,-480.0,0.00013698,2]
[382752133,1756726247647,-480.0,0.00013698,2]
[382752134,1756726247657,-481.64271792,0.00013698,2]
[382752135,1756726247667,-480.0,0.00013698,2]
[382752136,1756726247676,-790.62,0.00013698,2]
[382752137,1756726247686,-480.0,0.00013698,2]
[382752138,1756726247696,-795.68,0.00013698,2]
[382752139,1756726247706,-480.0,0.00013698,2]
[382752140,1756726247715,-482.83658517,0.00013698,2]
[382752141,1756726247725,-480.0,0.00013698,2]
[382752142,1756726247734,-582.77,0.00013698,2]
[382752143,1756726247744,-483.7328793,0.00013698,2]
[382752144,1756726247754,-480.0,0.00013698,2]
[382752145,1756726247764,-480.0,0.00013698,2]